[Event "*** Titled Tuesday Blitz"]
[Site "Chess.com"]
[Date "2020.04.28"]
[Round "3"]
[White "ShadowJolteon"]
[Black "1Przemyslaw1"]
[Result "1-0"]
[WhiteElo "2273"]
[BlackElo "2390"]
[TimeControl "180+1"]
[EndTime "10:28:53 PDT"]
[Termination "ShadowJolteon won on time"]

1. d4 {[%clk 0:03:00.9]} 1... d5 {[%clk 0:02:59.2]} 2. c4 {[%clk 0:03:00.5]}
2... e6 {[%clk 0:02:59]} 3. Nf3 {[%clk 0:03:00.5]} 3... Nf6 {[%clk 0:02:58.6]}
4. g3 {[%clk 0:03:00.8]} 4... Be7 {[%clk 0:02:58.2]} 5. Bg2 {[%clk 0:03:01.3]}
5... O-O {[%clk 0:02:58.2]} 6. O-O {[%clk 0:03:02.2]} 6... c6 {[%clk 0:02:57.8]}
7. Nbd2 {[%clk 0:03:01.3]} 7... a5 {[%clk 0:02:56.5]} 8. Qc2 {[%clk 0:03:01.6]}
8... b6 {[%clk 0:02:55.8]} 9. Re1 {[%clk 0:03:01.6]} 9... Bb7 {[%clk 0:02:54.2]}
10. e4 {[%clk 0:03:01.7]} 10... Na6 {[%clk 0:02:52.7]} 11. e5 {[%clk 0:02:46.1]}
11... Nd7 {[%clk 0:02:52]} 12. cxd5 {[%clk 0:02:46]} 12... cxd5 {[%clk
0:02:47.6]} 13. h4 {[%clk 0:02:45.4]} 13... Rc8 {[%clk 0:02:43.5]} 14. Qb3
{[%clk 0:02:45.2]} 14... Nb4 {[%clk 0:02:35.1]} 15. Rb1 {[%clk 0:02:31.5]} 15...
b5 {[%clk 0:02:23.6]} 16. a3 {[%clk 0:02:25.6]} 16... a4 {[%clk 0:02:21.8]} 17.
Qd1 {[%clk 0:02:25.7]} 17... Nc2 {[%clk 0:02:07.3]} 18. Re2 {[%clk 0:02:24]}
18... Qc7 {[%clk 0:01:56.7]} 19. Nf1 {[%clk 0:02:22.7]} 19... Nb6 {[%clk
0:01:25.3]} 20. Ne3 {[%clk 0:02:22.1]} 20... Nxe3 {[%clk 0:01:22.5]} 21. Bxe3
{[%clk 0:02:23]} 21... b4 {[%clk 0:00:58.4]} 22. Rc1 {[%clk 0:02:00.8]} 22...
Qd7 {[%clk 0:00:58.2]} 23. axb4 {[%clk 0:01:51.5]} 23... Bxb4 {[%clk 0:00:57]}
24. Bd2 {[%clk 0:01:31.6]} 24... Qb5 {[%clk 0:00:48]} 25. Bxb4 {[%clk 0:01:29]}
25... Qxb4 {[%clk 0:00:47.9]} 26. h5 {[%clk 0:01:12.3]} 26... h6 {[%clk
0:00:46.6]} 27. g4 {[%clk 0:01:11.2]} 27... Rxc1 {[%clk 0:00:36.6]} 28. Qxc1
{[%clk 0:01:10.3]} 28... Rc8 {[%clk 0:00:36.1]} 29. Qf4 {[%clk 0:01:06.4]} 29...
Qe7 {[%clk 0:00:19.8]} 30. g5 {[%clk 0:01:05.6]} 30... hxg5 {[%clk 0:00:19.3]}
31. Nxg5 {[%clk 0:01:05.8]} 31... Ba6 {[%clk 0:00:17.2]} 32. Re3 {[%clk
0:01:00.7]} 32... Rc1+ {[%clk 0:00:15.4]} 33. Kh2 {[%clk 0:01:00.2]} 33... Rd1
{[%clk 0:00:11.8]} 34. Rg3 {[%clk 0:00:58.1]} 34... Nc4 {[%clk 0:00:11.4]} 35.
h6 {[%clk 0:00:55.8]} 35... g6 {[%clk 0:00:11.2]} 36. h7+ {[%clk 0:00:55.8]}
36... Kg7 {[%clk 0:00:09.4]} 37. h8=Q+ {[%clk 0:00:46.4]} 37... Kxh8 {[%clk
0:00:08.5]} 38. Qh4+ {[%clk 0:00:47.3]} 38... Kg8 {[%clk 0:00:06.9]} 39. Qh7+
{[%clk 0:00:47.1]} 1-0

[Event "*** Titled Tuesday Blitz"]
[Site "Chess.com"]
[Date "2020.04.28"]
[Round "3"]
[White "ErikRonka"]
[Black "shyam"]
[Result "0-1"]
[WhiteElo "2423"]
[BlackElo "2697"]
[TimeControl "180+1"]
[EndTime "10:28:54 PDT"]
[Termination "shyam won by checkmate"]

1. e4 {[%clk 0:03:00.9]} 1... c5 {[%clk 0:02:59.1]} 2. Nf3 {[%clk 0:03:00.6]}
2... d6 {[%clk 0:02:59.5]} 3. d4 {[%clk 0:03:00.6]} 3... cxd4 {[%clk 0:03:00.4]}
4. Nxd4 {[%clk 0:03:01.2]} 4... Nf6 {[%clk 0:03:01.1]} 5. Nc3 {[%clk 0:03:01.8]}
5... a6 {[%clk 0:03:01.7]} 6. Be3 {[%clk 0:03:02]} 6... e5 {[%clk 0:02:59.6]} 7.
Nb3 {[%clk 0:03:01.7]} 7... Be7 {[%clk 0:02:58.7]} 8. f3 {[%clk 0:03:01.7]} 8...
Be6 {[%clk 0:02:57.9]} 9. Qd2 {[%clk 0:03:02.1]} 9... O-O {[%clk 0:02:56.6]} 10.
O-O-O {[%clk 0:03:01.4]} 10... Nbd7 {[%clk 0:02:56.2]} 11. g4 {[%clk 0:03:00.8]}
11... b5 {[%clk 0:02:56.6]} 12. g5 {[%clk 0:03:01.1]} 12... b4 {[%clk
0:02:55.9]} 13. gxf6 {[%clk 0:03:00.6]} 13... bxc3 {[%clk 0:02:56.8]} 14. Qxc3
{[%clk 0:03:01.1]} 14... Nxf6 {[%clk 0:02:55.3]} 15. Na5 {[%clk 0:03:01.1]}
15... Qd7 {[%clk 0:02:42.5]} 16. Nc6 {[%clk 0:03:00.7]} 16... Rfc8 {[%clk
0:02:41.5]} 17. Nxe7+ {[%clk 0:03:00.3]} 17... Qxe7 {[%clk 0:02:42.4]} 18. Qa5
{[%clk 0:03:00.4]} 18... Rc6 {[%clk 0:02:38.4]} 19. Rg1 {[%clk 0:02:50.1]} 19...
Rac8 {[%clk 0:02:36.9]} 20. Rg2 {[%clk 0:02:37.3]} 20... Bh3 {[%clk 0:02:33.1]}
21. Rgd2 {[%clk 0:02:32.1]} 21... Bxf1 {[%clk 0:02:32.7]} 22. Rxf1 {[%clk
0:02:32.1]} 22... Qe6 {[%clk 0:02:24]} 23. Rfd1 {[%clk 0:02:09.8]} 23... h6
{[%clk 0:02:22.8]} 24. c3 {[%clk 0:02:03.5]} 24... Qh3 {[%clk 0:02:20.3]} 25.
Rxd6 {[%clk 0:01:20]} 25... Qxf3 {[%clk 0:02:14]} 26. Rd8+ {[%clk 0:01:04.2]}
26... Kh7 {[%clk 0:02:09.8]} 27. Bd2 {[%clk 0:00:52.5]} 27... Rxd8 {[%clk
0:02:03.9]} 28. Qxd8 {[%clk 0:00:52]} 28... Nxe4 {[%clk 0:02:00.9]} 29. Qd5
{[%clk 0:00:44.1]} 29... Rc5 {[%clk 0:01:39.1]} 30. Qd7 {[%clk 0:00:31.4]} 30...
Nf2 {[%clk 0:01:12.9]} 31. Rg1 {[%clk 0:00:20.8]} 31... Rd5 {[%clk 0:01:12]} 32.
Qc6 {[%clk 0:00:09.9]} 32... Nd3+ {[%clk 0:01:06.1]} 33. Kb1 {[%clk 0:00:10]}
33... Nf4 {[%clk 0:00:48.6]} 34. Qc4 {[%clk 0:00:08.5]} 34... Rxd2 {[%clk
0:00:43.5]} 35. Qxf7 {[%clk 0:00:05.1]} 35... Qd3+ {[%clk 0:00:43.1]} 36. Ka1
{[%clk 0:00:05.2]} 36... Rd1+ {[%clk 0:00:43.3]} 37. Rxd1 {[%clk 0:00:05.3]}
37... Qxd1# {[%clk 0:00:44.2]} 0-1

[Event "*** Titled Tuesday Blitz"]
[Site "Chess.com"]
[Date "2020.04.28"]
[Round "3"]
[White "Quattroporte300"]
[Black "ZCorrales"]
[Result "1-0"]
[WhiteElo "2304"]
[BlackElo "2056"]
[TimeControl "180+1"]
[EndTime "10:28:54 PDT"]
[Termination "Quattroporte300 won by checkmate"]

1. e4 {[%clk 0:03:00.9]} 1... e5 {[%clk 0:02:59]} 2. Nf3 {[%clk 0:03:00.5]} 2...
Nc6 {[%clk 0:02:59.1]} 3. Bb5 {[%clk 0:03:00.8]} 3... a6 {[%clk 0:02:58.2]} 4.
Ba4 {[%clk 0:03:00.8]} 4... Nf6 {[%clk 0:02:57.3]} 5. O-O {[%clk 0:03:00.6]}
5... b5 {[%clk 0:02:54.9]} 6. Bb3 {[%clk 0:03:00.1]} 6... Bc5 {[%clk 0:02:55.3]}
7. a4 {[%clk 0:02:58]} 7... Rb8 {[%clk 0:02:54.4]} 8. c3 {[%clk 0:02:56.9]} 8...
d6 {[%clk 0:02:53.9]} 9. d4 {[%clk 0:02:55.5]} 9... Bb6 {[%clk 0:02:49.5]} 10.
a5 {[%clk 0:02:55.7]} 10... Ba7 {[%clk 0:02:47.3]} 11. h3 {[%clk 0:02:56.1]}
11... O-O {[%clk 0:02:46]} 12. Re1 {[%clk 0:02:54.1]} 12... b4 {[%clk
0:02:38.4]} 13. Bg5 {[%clk 0:02:49.1]} 13... bxc3 {[%clk 0:02:35.7]} 14. bxc3
{[%clk 0:02:47.5]} 14... exd4 {[%clk 0:02:33.9]} 15. cxd4 {[%clk 0:02:43.6]}
15... Nxd4 {[%clk 0:02:31]} 16. Nxd4 {[%clk 0:02:39]} 16... Bxd4 {[%clk
0:02:30.2]} 17. Bxf7+ {[%clk 0:02:21.1]} 17... Rxf7 {[%clk 0:02:27.7]} 18. Qxd4
{[%clk 0:02:22]} 18... Qf8 {[%clk 0:02:14.2]} 19. Nc3 {[%clk 0:02:17.8]} 19...
Be6 {[%clk 0:02:06.4]} 20. Qd3 {[%clk 0:02:06.9]} 20... Nd7 {[%clk 0:02:03.3]}
21. Be3 {[%clk 0:02:00.2]} 21... Ra8 {[%clk 0:01:54]} 22. Rab1 {[%clk
0:01:58.1]} 22... Ne5 {[%clk 0:01:49.2]} 23. Qe2 {[%clk 0:01:46.2]} 23... Bc4
{[%clk 0:01:45.3]} 24. Qd2 {[%clk 0:01:27.8]} 24... Nd3 {[%clk 0:01:22.4]} 25.
Red1 {[%clk 0:01:21.9]} 25... c5 {[%clk 0:01:13.3]} 26. Rb6 {[%clk 0:01:18.7]}
26... Rf6 {[%clk 0:01:04.1]} 27. f3 {[%clk 0:01:17.4]} 27... Rg6 {[%clk
0:00:57.2]} 28. Kh1 {[%clk 0:01:07.1]} 28... h6 {[%clk 0:00:39.7]} 29. Nd5
{[%clk 0:01:04.9]} 29... Bxd5 {[%clk 0:00:32.4]} 30. Qxd3 {[%clk 0:01:00.9]}
30... Be6 {[%clk 0:00:31.4]} 31. Qxd6 {[%clk 0:00:54.2]} 31... Qf7 {[%clk
0:00:18.4]} 32. Rb8+ {[%clk 0:00:50.5]} 32... Rxb8 {[%clk 0:00:17.7]} 33. Qxb8+
{[%clk 0:00:51.1]} 33... Kh7 {[%clk 0:00:18.2]} 34. Rd8 {[%clk 0:00:49.8]} 34...
Rf6 {[%clk 0:00:10.8]} 35. Rh8+ {[%clk 0:00:49]} 35... Kg6 {[%clk 0:00:10.3]}
36. Qg3+ {[%clk 0:00:47.5]} 36... Kh5 {[%clk 0:00:09.2]} 37. Qe5+ {[%clk
0:00:38.6]} 37... g5 {[%clk 0:00:08.4]} 38. Qxg5# {[%clk 0:00:33.8]} 1-0

[Event "*** Titled Tuesday Blitz"]
[Site "Chess.com"]
[Date "2020.04.28"]
[Round "3"]
[White "grunbergmihai"]
[Black "johnathan113"]
[Result "0-1"]
[WhiteElo "2407"]
[BlackElo "2636"]
[TimeControl "180+1"]
[EndTime "10:28:55 PDT"]
[Termination "johnathan113 won by resignation"]

1. Nf3 {[%clk 0:03:00.9]} 1... g6 {[%clk 0:02:59.8]} 2. c4 {[%clk 0:03:01.2]}
2... c5 {[%clk 0:03:00.2]} 3. d4 {[%clk 0:03:00.4]} 3... cxd4 {[%clk 0:03:01.1]}
4. Nxd4 {[%clk 0:03:00.7]} 4... Nf6 {[%clk 0:03:01.7]} 5. Nc3 {[%clk 0:03:00.4]}
5... Nc6 {[%clk 0:03:00.6]} 6. e4 {[%clk 0:02:59.6]} 6... Bg7 {[%clk 0:02:59.3]}
7. Be3 {[%clk 0:02:56.6]} 7... O-O {[%clk 0:02:58.9]} 8. Be2 {[%clk 0:02:55.5]}
8... b6 {[%clk 0:02:59.4]} 9. Qd2 {[%clk 0:02:50.2]} 9... Bb7 {[%clk 0:02:58.6]}
10. f3 {[%clk 0:02:50.2]} 10... e6 {[%clk 0:02:58.6]} 11. O-O {[%clk 0:02:38.5]}
11... d5 {[%clk 0:02:58.7]} 12. Nxc6 {[%clk 0:02:33.4]} 12... Bxc6 {[%clk
0:02:58.1]} 13. cxd5 {[%clk 0:02:33]} 13... exd5 {[%clk 0:02:59]} 14. e5 {[%clk
0:02:28.7]} 14... Ne8 {[%clk 0:02:58.7]} 15. f4 {[%clk 0:02:25.2]} 15... f6
{[%clk 0:02:59.3]} 16. Bd4 {[%clk 0:02:19.2]} 16... fxe5 {[%clk 0:02:59.5]} 17.
fxe5 {[%clk 0:02:15.6]} 17... Nc7 {[%clk 0:02:59.8]} 18. Rxf8+ {[%clk
0:02:11.8]} 18... Qxf8 {[%clk 0:03:00.7]} 19. Bf3 {[%clk 0:02:09.2]} 19... Rd8
{[%clk 0:02:59.5]} 20. Rf1 {[%clk 0:02:05.3]} 20... Qe7 {[%clk 0:02:58.8]} 21.
Re1 {[%clk 0:01:49.3]} 21... Ne6 {[%clk 0:02:58.6]} 22. Bf2 {[%clk 0:01:45.8]}
22... Qb7 {[%clk 0:02:48.4]} 23. Nd1 {[%clk 0:01:27.7]} 23... d4 {[%clk
0:02:46.8]} 24. Bxc6 {[%clk 0:01:26.9]} 24... Qxc6 {[%clk 0:02:47.7]} 25. b3
{[%clk 0:01:24.4]} 25... Rd5 {[%clk 0:02:35.7]} 26. Bg3 {[%clk 0:01:18.7]} 26...
Qc7 {[%clk 0:02:33.8]} 27. Qe2 {[%clk 0:01:15.4]} 27... d3 {[%clk 0:02:32.7]}
28. Qe4 {[%clk 0:01:14.6]} 28... Rd4 {[%clk 0:02:22.5]} 29. Qe3 {[%clk
0:01:11.2]} 29... d2 {[%clk 0:02:16.9]} 30. Rf1 {[%clk 0:01:11.2]} 30... h6
{[%clk 0:02:05]} 31. h4 {[%clk 0:01:10.7]} 31... h5 {[%clk 0:02:01.2]} 32. Nf2
{[%clk 0:01:07.7]} 32... Qc2 {[%clk 0:01:59.2]} 33. Rd1 {[%clk 0:01:03.3]} 33...
Kh7 {[%clk 0:01:53.9]} 34. a4 {[%clk 0:00:57.1]} 34... Bh6 {[%clk 0:01:14]} 35.
Qf3 {[%clk 0:00:55.1]} 35... Qf5 {[%clk 0:01:14.6]} 36. Qxf5 {[%clk 0:00:49]}
36... gxf5 {[%clk 0:01:14.4]} 37. Kf1 {[%clk 0:00:47.8]} 37... Nc5 {[%clk
0:01:03.2]} 38. Rb1 {[%clk 0:00:43.4]} 38... Nd3 {[%clk 0:00:58.6]} 39. Ke2
{[%clk 0:00:36.7]} 39... Nxf2 {[%clk 0:00:45.1]} 40. Bxf2 {[%clk 0:00:36.4]}
40... Re4+ {[%clk 0:00:45.8]} 41. Kd1 {[%clk 0:00:34.6]} 41... Rxe5 {[%clk
0:00:46.4]} 42. b4 {[%clk 0:00:34.4]} 42... Re4 {[%clk 0:00:43.4]} 43. a5 {[%clk
0:00:32.9]} 43... Rc4 {[%clk 0:00:43.3]} 44. axb6 {[%clk 0:00:28.5]} 44... Rc1+
{[%clk 0:00:42.8]} 45. Ke2 {[%clk 0:00:28.1]} 45... Rxb1 {[%clk 0:00:43.1]} 0-1

[Event "*** Titled Tuesday Blitz"]
[Site "Chess.com"]
[Date "2020.04.28"]
[Round "3"]
[White "1f3_2g41-0"]
[Black "Noam_Vitenberg"]
[Result "1-0"]
[WhiteElo "2217"]
[BlackElo "2485"]
[TimeControl "180+1"]
[EndTime "10:28:55 PDT"]
[Termination "1f3_2g41-0 won on time"]

1. e4 {[%clk 0:02:53.9]} 1... e5 {[%clk 0:02:58.6]} 2. Nf3 {[%clk 0:02:51.9]}
2... Nc6 {[%clk 0:02:57.9]} 3. Bb5 {[%clk 0:02:51]} 3... a6 {[%clk 0:02:48.3]}
4. Ba4 {[%clk 0:02:50.5]} 4... Nf6 {[%clk 0:02:47.4]} 5. O-O {[%clk 0:02:49]}
5... Be7 {[%clk 0:02:46.6]} 6. Re1 {[%clk 0:02:47.8]} 6... b5 {[%clk 0:02:45]}
7. Bb3 {[%clk 0:02:47.2]} 7... O-O {[%clk 0:02:45.1]} 8. c3 {[%clk 0:02:47.2]}
8... d5 {[%clk 0:02:44.5]} 9. exd5 {[%clk 0:02:47.2]} 9... Nxd5 {[%clk
0:02:45.4]} 10. d4 {[%clk 0:02:45.5]} 10... exd4 {[%clk 0:02:07.9]} 11. cxd4
{[%clk 0:02:44.6]} 11... Bg4 {[%clk 0:02:02.5]} 12. Nc3 {[%clk 0:02:41.9]} 12...
Nb6 {[%clk 0:01:41.8]} 13. d5 {[%clk 0:02:31.4]} 13... Na5 {[%clk 0:01:40]} 14.
Bc2 {[%clk 0:02:27.8]} 14... Bf6 {[%clk 0:01:36.8]} 15. Qd3 {[%clk 0:02:03.9]}
15... g6 {[%clk 0:01:27.7]} 16. Rd1 {[%clk 0:02:02.4]} 16... Nac4 {[%clk
0:01:21.1]} 17. Bh6 {[%clk 0:01:53.3]} 17... Nxb2 {[%clk 0:01:18.1]} 18. Qe3
{[%clk 0:01:38.4]} 18... Nxd1 {[%clk 0:01:15.8]} 19. Rxd1 {[%clk 0:01:37.4]}
19... Re8 {[%clk 0:01:14.4]} 20. Ne4 {[%clk 0:01:31]} 20... Bh8 {[%clk
0:01:05.8]} 21. d6 {[%clk 0:01:28.5]} 21... cxd6 {[%clk 0:01:01]} 22. Qf4 {[%clk
0:01:14.6]} 22... Bxf3 {[%clk 0:00:53.7]} 23. Qxf3 {[%clk 0:01:13.7]} 23... d5
{[%clk 0:00:37.5]} 24. Bb3 {[%clk 0:01:05.4]} 24... Rxe4 {[%clk 0:00:28.9]} 25.
Bxd5 {[%clk 0:00:57.9]} 25... Nxd5 {[%clk 0:00:19.2]} 26. Qxe4 {[%clk
0:00:56.8]} 26... Rc8 {[%clk 0:00:10.4]} 27. Rxd5 {[%clk 0:00:54.3]} 27... Qf6
{[%clk 0:00:10.1]} 28. g3 {[%clk 0:00:51.5]} 28... Qe6 {[%clk 0:00:07.1]} 29.
Qd3 {[%clk 0:00:48]} 29... Qe8 {[%clk 0:00:05.4]} 30. Rd7 {[%clk 0:00:43.9]}
30... Bf6 {[%clk 0:00:05.3]} 31. Qd6 {[%clk 0:00:35.5]} 31... Rd8 {[%clk
0:00:04.4]} 32. Qxf6 {[%clk 0:00:34.3]} 32... Qe1+ {[%clk 0:00:01.7]} 33. Kg2
{[%clk 0:00:34.2]} 33... Qe4+ {[%clk 0:00:01.7]} 34. f3 {[%clk 0:00:33.9]} 34...
Qe2+ {[%clk 0:00:01]} 35. Kh3 {[%clk 0:00:34.2]} 1-0

[Event "*** Titled Tuesday Blitz"]
[Site "Chess.com"]
[Date "2020.04.28"]
[Round "3"]
[White "skoularikii"]
[Black "AlexTriapishko"]
[Result "0-1"]
[WhiteElo "2524"]
[BlackElo "2753"]
[TimeControl "180+1"]
[EndTime "10:28:58 PDT"]
[Termination "AlexTriapishko won by resignation"]

1. e4 {[%clk 0:03:00.9]} 1... c5 {[%clk 0:02:01.2]} 2. Nf3 {[%clk 0:03:00.5]}
2... Nc6 {[%clk 0:02:00.5]} 3. c3 {[%clk 0:02:59.8]} 3... Nf6 {[%clk 0:02:00.1]}
4. e5 {[%clk 0:02:58.4]} 4... Nd5 {[%clk 0:02:00.7]} 5. Bc4 {[%clk 0:02:59]}
5... Nb6 {[%clk 0:01:56.1]} 6. Bb3 {[%clk 0:02:59.1]} 6... d6 {[%clk 0:01:56.2]}
7. exd6 {[%clk 0:02:58.9]} 7... e6 {[%clk 0:01:55.8]} 8. O-O {[%clk 0:02:58.3]}
8... Bxd6 {[%clk 0:01:56.1]} 9. d3 {[%clk 0:02:58.6]} 9... O-O {[%clk
0:01:55.8]} 10. Nbd2 {[%clk 0:02:59.2]} 10... Nd5 {[%clk 0:01:37.7]} 11. Ne4
{[%clk 0:02:55.6]} 11... Be7 {[%clk 0:01:38]} 12. d4 {[%clk 0:02:54.7]} 12...
cxd4 {[%clk 0:01:35.4]} 13. Nxd4 {[%clk 0:02:54.8]} 13... Bd7 {[%clk 0:01:32.8]}
14. Bc2 {[%clk 0:02:47.2]} 14... Nxd4 {[%clk 0:01:19.9]} 15. Qxd4 {[%clk
0:02:46.5]} 15... Qb6 {[%clk 0:01:20.4]} 16. Qxb6 {[%clk 0:02:43.7]} 16... Nxb6
{[%clk 0:01:19.2]} 17. Rd1 {[%clk 0:02:41.6]} 17... Bc6 {[%clk 0:01:19.2]} 18.
b3 {[%clk 0:02:37]} 18... Rfd8 {[%clk 0:01:07.6]} 19. Bb2 {[%clk 0:02:36.9]}
19... f5 {[%clk 0:00:54.1]} 20. Nd2 {[%clk 0:02:34.9]} 20... Bf6 {[%clk
0:00:54.5]} 21. Nf1 {[%clk 0:02:26.9]} 21... Nd5 {[%clk 0:00:52.8]} 22. Rac1
{[%clk 0:02:08.9]} 22... Nf4 {[%clk 0:00:44.4]} 23. Rxd8+ {[%clk 0:01:46]} 23...
Rxd8 {[%clk 0:00:45.3]} 24. Re1 {[%clk 0:01:46.5]} 24... Nxg2 {[%clk 0:00:38.3]}
25. Rxe6 {[%clk 0:01:46.1]} 25... Nf4 {[%clk 0:00:36.3]} 26. Re3 {[%clk
0:01:46.2]} 26... g6 {[%clk 0:00:28.7]} 27. Bc1 {[%clk 0:01:44.5]} 27... Nd5
{[%clk 0:00:27.9]} 28. Rd3 {[%clk 0:01:42.5]} 28... Nxc3 {[%clk 0:00:26.3]} 29.
Rxd8+ {[%clk 0:01:33.7]} 29... Bxd8 {[%clk 0:00:27.2]} 30. Bd3 {[%clk
0:01:33.6]} 30... Nxa2 {[%clk 0:00:25.9]} 31. Bd2 {[%clk 0:01:34.1]} 31... a5
{[%clk 0:00:25.2]} 32. Bc4+ {[%clk 0:01:32.8]} 32... Kg7 {[%clk 0:00:25.4]} 33.
Ne3 {[%clk 0:01:32.6]} 33... Nb4 {[%clk 0:00:25.7]} 34. Be2 {[%clk 0:01:29.8]}
34... b5 {[%clk 0:00:21.2]} 35. Nd1 {[%clk 0:01:29.8]} 35... Nd5 {[%clk
0:00:13.6]} 36. Nb2 {[%clk 0:01:28.9]} 36... Bf6 {[%clk 0:00:11.2]} 37. Nd3
{[%clk 0:01:29]} 37... a4 {[%clk 0:00:11.7]} 38. bxa4 {[%clk 0:01:28]} 38...
bxa4 {[%clk 0:00:12.6]} 39. Bc1 {[%clk 0:01:25.7]} 39... Nc3 {[%clk 0:00:12]}
40. Bf1 {[%clk 0:01:25.8]} 40... Bb5 {[%clk 0:00:10.9]} 41. Nc5 {[%clk
0:01:23.4]} 41... Bxf1 {[%clk 0:00:08]} 42. Kxf1 {[%clk 0:01:24.3]} 42... Be7
{[%clk 0:00:06.2]} 43. Ne6+ {[%clk 0:01:23.8]} 43... Kf7 {[%clk 0:00:06.2]} 44.
Nd4 {[%clk 0:01:21.9]} 44... Bc5 {[%clk 0:00:06.2]} 45. Nc2 {[%clk 0:01:21.6]}
45... Ke6 {[%clk 0:00:06.6]} 46. Ke1 {[%clk 0:01:21.6]} 46... Kd5 {[%clk
0:00:06.6]} 47. Kd2 {[%clk 0:01:22.1]} 47... Ne4+ {[%clk 0:00:06.9]} 48. Kd3
{[%clk 0:01:20.7]} 48... Nxf2+ {[%clk 0:00:07.4]} 49. Kc3 {[%clk 0:01:21.2]}
49... Ne4+ {[%clk 0:00:08.3]} 50. Kb2 {[%clk 0:01:21.5]} 50... Kc4 {[%clk
0:00:08.4]} 51. Bf4 {[%clk 0:01:20.3]} 51... Nf2 {[%clk 0:00:07.9]} 52. Be5
{[%clk 0:01:20.3]} 52... Nd3+ {[%clk 0:00:08.4]} 53. Ka2 {[%clk 0:01:20.9]}
53... Nxe5 {[%clk 0:00:09.3]} 54. Ne1 {[%clk 0:01:21.4]} 54... Nc6 {[%clk
0:00:09.7]} 55. Ng2 {[%clk 0:01:22.3]} 55... Nb4+ {[%clk 0:00:10.5]} 56. Kb1
{[%clk 0:01:22.6]} 56... a3 {[%clk 0:00:10.9]} 57. Ne1 {[%clk 0:01:23.5]} 57...
a2+ {[%clk 0:00:11.5]} 0-1

[Event "*** Titled Tuesday Blitz"]
[Site "Chess.com"]
[Date "2020.04.28"]
[Round "3"]
[White "temiksmozg"]
[Black "Irishchessman16"]
[Result "0-1"]
[WhiteElo "2619"]
[BlackElo "2421"]
[TimeControl "180+1"]
[EndTime "10:28:58 PDT"]
[Termination "Irishchessman16 won by resignation"]

1. d4 {[%clk 0:03:00.9]} 1... d5 {[%clk 0:02:56.4]} 2. c4 {[%clk 0:03:00.4]}
2... e6 {[%clk 0:02:55.9]} 3. Nc3 {[%clk 0:02:59.9]} 3... a6 {[%clk 0:02:54.5]}
4. cxd5 {[%clk 0:02:56]} 4... exd5 {[%clk 0:02:55.4]} 5. Nf3 {[%clk 0:02:52.3]}
5... Nf6 {[%clk 0:02:55.1]} 6. Bf4 {[%clk 0:02:52]} 6... Bd6 {[%clk 0:02:51.9]}
7. Be5 {[%clk 0:02:51.5]} 7... c6 {[%clk 0:02:43.7]} 8. e3 {[%clk 0:02:50.1]}
8... O-O {[%clk 0:02:43.7]} 9. Bd3 {[%clk 0:02:49.4]} 9... Bxe5 {[%clk
0:02:41.9]} 10. dxe5 {[%clk 0:02:43.1]} 10... Nfd7 {[%clk 0:02:34.7]} 11. Qc2
{[%clk 0:02:42.2]} 11... h6 {[%clk 0:02:29.9]} 12. e4 {[%clk 0:02:34.4]} 12...
d4 {[%clk 0:02:26.6]} 13. Ne2 {[%clk 0:02:34.6]} 13... Nxe5 {[%clk 0:02:24.3]}
14. Nxe5 {[%clk 0:02:29.8]} 14... Qa5+ {[%clk 0:02:24.1]} 15. b4 {[%clk
0:02:18.3]} 15... Qxe5 {[%clk 0:02:21.5]} 16. Qc5 {[%clk 0:02:18.6]} 16... Qxc5
{[%clk 0:02:11.1]} 17. bxc5 {[%clk 0:02:19.5]} 17... Nd7 {[%clk 0:02:11.5]} 18.
Rc1 {[%clk 0:02:14.7]} 18... Ne5 {[%clk 0:02:11.8]} 19. Kd2 {[%clk 0:02:14.3]}
19... f5 {[%clk 0:02:01.9]} 20. exf5 {[%clk 0:02:02]} 20... Nxd3 {[%clk
0:01:38.8]} 21. Kxd3 {[%clk 0:01:57.4]} 21... Bxf5+ {[%clk 0:01:39.4]} 22. Kd2
{[%clk 0:01:57.5]} 22... Be6 {[%clk 0:01:34.6]} 23. f3 {[%clk 0:01:52.8]} 23...
Bxa2 {[%clk 0:01:33.4]} 24. Nxd4 {[%clk 0:01:51.9]} 24... Rad8 {[%clk 0:01:32]}
25. Kc3 {[%clk 0:01:50]} 25... Rd5 {[%clk 0:01:23.4]} 26. Rce1 {[%clk
0:01:41.3]} 26... Rxc5+ {[%clk 0:01:18.8]} 27. Kb2 {[%clk 0:01:41.8]} 27... Bd5
{[%clk 0:01:16]} 28. Re7 {[%clk 0:01:42]} 28... Rc4 {[%clk 0:01:13.8]} 29. Nc2
{[%clk 0:01:39.6]} 29... b5 {[%clk 0:00:56.8]} 30. Ra1 {[%clk 0:01:37.8]} 30...
Ra8 {[%clk 0:00:52.4]} 31. Rc7 {[%clk 0:01:34.9]} 31... a5 {[%clk 0:00:50.2]}
32. Re1 {[%clk 0:01:35.1]} 32... Rf4 {[%clk 0:00:30.5]} 33. Rd7 {[%clk
0:00:52.5]} 33... Rf7 {[%clk 0:00:27.7]} 34. Rd6 {[%clk 0:00:53]} 34... b4
{[%clk 0:00:21]} 35. Re5 {[%clk 0:00:50.2]} 35... Rb7 {[%clk 0:00:18.9]} 36. Ne3
{[%clk 0:00:41.1]} 36... a4 {[%clk 0:00:19.3]} 37. Nf5 {[%clk 0:00:39.4]} 37...
a3+ {[%clk 0:00:18.4]} 38. Kb1 {[%clk 0:00:34]} 38... b3 {[%clk 0:00:18.1]} 39.
Ne7+ {[%clk 0:00:33.4]} 39... Rxe7 {[%clk 0:00:18]} 40. Rxe7 {[%clk 0:00:33.3]}
40... a2+ {[%clk 0:00:18.4]} 41. Ka1 {[%clk 0:00:32.4]} 41... b2+ {[%clk
0:00:18.7]} 42. Kxb2 {[%clk 0:00:33]} 42... a1=Q+ {[%clk 0:00:18.7]} 0-1